fUSD/lending_fUSD_20240116
["ID","MTS","AMOUNT","RATE_DAILY","PERIOD"]
[311813661,1705427458319,-181.001925,0.00034738,2]
[311813662,1705427458330,-23079.513768,0.00034738,2]
[311813663,1705427458340,-8573.217216,0.00034738,2]
[311813664,1705427458351,-165.480453,0.00034738,2]
[311813665,1705427458361,-7998.047118,0.00034738,2]
[311813666,1705427458373,-407.095142,0.00034738,2]
[311813667,1705427458383,-1227.094884,0.00034738,2]
[311813668,1705427458393,-2389.825602,0.00034738,2]
[311813669,1705427458403,-225.762403,0.00034738,2]
[311813670,1705427458413,-639.410468,0.00034738,2]
[311813671,1705427458425,-185.639419,0.00034738,2]
[311813672,1705427458438,-605.76362,0.00034738,2]
[311813673,1705427458448,-177.839839,0.00034738,2]
[311813674,1705427458459,-151.0,0.00034739,2]
[311813675,1705427458469,-227.89977343,0.0003477,30]
[311813676,1705427458479,-2029.28,0.00034794,4]
[311813677,1705427458489,-500.0,0.00034794,4]
[311813678,1705427458501,-15886.001337,0.00034794,2]
[311813679,1705427458512,-128985.289374,0.00034794,2]
[311813680,1705427458523,-1841.221699,0.00034794,2]
[311813681,1705427458534,-1358.762469,0.00034794,2]
[311813682,1705427458546,-12355.077024,0.00034794,2]
[311813683,1705427458559,-5260.115643,0.00034794,2]
[311813684,1705427458572,-18928.398298,0.00034794,2]
[311813685,1705427458588,-214.0,0.000348,2]
[311813686,1705427458599,-62901.62900972,0.00034897,2]
[311813687,1705427459683,-279.29622383,0.00034897,2]
[311813688,1705427460424,-1780.0425877,0.00028,2]
[311813689,1705427460434,-1780.0425877,0.00028,2]
[311813690,1705427460444,-1780.0425877,0.00028,2]
[311813691,1705427460455,-150.91,0.00033,2]
[311813692,1705427460465,-150.91,0.00033,2]
[311813693,1705427460475,-150.91,0.00033,2]
[311813694,1705427460484,-150.91,0.00033,2]
[311813695,1705427460496,-150.91,0.00033,2]
[311813696,1705427460506,-150.91,0.00033,2]
[311813697,1705427460516,-150.91,0.00033,2]
[311813698,1705427460526,-150.91,0.00033,2]
[311813699,1705427460536,-150.91,0.00033,2]
[311813700,1705427460547,-150.91,0.00033,2]
[311813701,1705427460557,-150.91,0.00033,2]
[311813702,1705427460567,-150.91,0.00033,2]
[311813703,1705427460578,-150.91,0.00033,2]
[311813704,1705427460590,-150.91,0.00033,2]
[311813705,1705427460602,-150.91,0.00033,2]
[311813706,1705427460612,-150.91,0.00033,2]
[311813707,1705427460622,-150.91,0.00033,2]
[311813708,1705427460632,-150.91,0.00033,2]
[311813709,1705427460642,-150.91,0.00033,2]
[311813710,1705427460652,-150.91,0.00033,2]
[311813711,1705427460664,-62446.55679817,0.00034897,2]
[311813712,1705427460675,-14800.10507309,0.000349,2]
[311813713,1705427460685,-8955.38787782,0.000349,4]
[311813714,1705427460696,-508.94336069,0.000349,2]
[311813715,1705427460706,-213873.1026921,0.000349,6]
[311813716,1705427460719,-1728.87109201,0.000349,6]
[311813717,1705427460732,-5988.98160065,0.000349,6]
[311813718,1705427460746,-607.58556435,0.000349,6]
[311813719,1705427460770,-9501.04018586,0.000349,6]
[311813720,1705427460784,-1641.23690211,0.000349,6]
[311813721,1705427460797,-656.06951265,0.000349,6]
[311813722,1705427460810,-846.22987002,0.000349,6]
[311813723,1705427460837,-1250.98277815,0.000349,6]
[311813724,1705427460852,-19153.81084582,0.000349,6]
[311813725,1705427460880,-158.37280432,0.000349,6]
[311813726,1705427460903,-424236.18086898,0.000349,6]
[311813727,1705427460950,-6871.185224,0.000349,6]
[311813728,1705427460961,-10162.899006,0.000349,6]
[311813729,1705427460972,-269.21035303,0.000349,6]
[311813730,1705427460984,-11318.03567867,0.000349,6]
[311813731,1705427461097,171.35,0.00021888,2]
[311813732,1705427461258,171.35,0.00021948,2]
[311813733,1705427462148,-171.35,0.00022009,2]
[311813734,1705427462158,-171.35,0.00022069,2]
[311813735,1705427462168,-171.35,0.00022129,2]
[311813736,1705427462178,-171.35,0.00022189,2]
[311813737,1705427462187,-171.35,0.00022249,2]
[311813738,1705427462196,-171.35,0.00022309,2]
[311813739,1705427462205,-171.35,0.00022369,2]
[311813740,1705427462214,-171.35,0.00022429,2]
[311813741,1705427462223,-1000.0,0.000329,2]
[311813742,1705427462232,-9218.84383586,0.000349,6]
[311813743,1705427462244,-3076.206052,0.000349,6]
[311813744,1705427462368,-171.35,0.00022489,2]
[311813745,1705427462378,-256706.42108777,0.000349,6]
[311813746,1705427462389,-1136.31970679,0.000349,6]
[311813747,1705427462424,1263.95,0.00021922,2]
[311813748,1705427462436,-3030.30568521,0.000349,6]
[311813749,1705427462512,-5208.30582001,0.000349,6]
[311813750,1705427462524,-364.69587167,0.000349,6]
[311813751,1705427462538,-20000.0,0.000349,6]
[311813752,1705427462549,-950.0,0.000349,6]
[311813753,1705427462689,-171.35,0.00022549,2]
[311813754,1705427462699,-5617.7333,0.000349,6]
[311813755,1705427462711,-260404.50732419,0.000349,6]
[311813756,1705427462721,-10367.52282993,0.000349,20]
[311813757,1705427462731,-5415.0,0.000349,14]
[311813758,1705427462741,-10000.0,0.000349,15]
[311813759,1705427462749,-162.09946546,0.000349,2]
[311813760,1705427462760,-6979.29,0.000349,2]
[311813761,1705427462768,-6979.29,0.000349,2]
[311813762,1705427462778,-6979.29,0.000349,2]
[311813763,1705427462787,-5885.72453125,0.000349,2]
[311813764,1705427468192,500.0,0.00021931,2]
[311813765,1705427585360,-1043.66290087,0.00022028,2]
[311813766,1705427585382,-956.33709913,0.00022028,2]
[311813767,1705427586262,-2000.0,0.00022028,2]
[311813768,1705427586665,-1668.62547091,0.00022028,2]
[311813769,1705427586687,-331.37452909,0.00022029,2]
[311813770,1705427587048,-1416.6280588,0.00022029,2]
[311813771,1705427587069,-278.75543747,0.00022068,2]
[311813772,1705427587091,-220.75582813,0.00022068,2]
[311813773,1705427587112,-83.8606756,0.000221,2]
[311813774,1705427587446,-124.81369163,0.000221,2]
[311813775,1705427587469,-1875.18630837,0.00022112,2]
[311813776,1705427587903,-2000.0,0.00022112,2]
[311813777,1705427588957,-1124.81369163,0.00022112,2]
[311813778,1705427588978,-208.67436723,0.00022208,2]
[311813779,1705427588999,-666.51194114,0.00022308,2]
[311813780,1705427589139,-1488.47517869,0.00022308,2]
[311813781,1705427589160,-511.52482131,0.00022308,2]
[311813782,1705427589961,-521.73010806,0.00022308,2]
[311813783,1705427589982,-402.8524231,0.00022308,2]
[311813784,1705427590003,-417.44049505,0.00022308,2]
[311813785,1705427590024,-657.97697379,0.00022308,2]
[311813786,1705427590842,-2000.0,0.00022308,2]
[311813787,1705427591259,-1670.98568433,0.00022308,2]
[311813788,1705427591281,-329.01431567,0.00022308,2]
[311813789,1705427591784,-2000.0,0.00022308,2]
[311813790,1705427593049,-711.43902271,0.00022308,2]
[311813791,1705427593072,-259.69802213,0.00022308,2]
[311813792,1705427593095,-1028.86295516,0.00022308,2]
[311813793,1705427593612,-858.83226895,0.00022308,2]
[311813794,1705427593642,-286.27768245,0.00022308,2]
[311813795,1705427593665,-650.80854945,0.00022308,2]
[311813796,1705427593687,-204.08149915,0.00022308,2]
[311813797,1705427600703,-60.88103731,0.00022308,2]
[311813798,1705427600727,-395.11896269,0.00022308,2]
[311813799,1705427612922,383.9779648,0.00021931,2]
[311813800,1705427613273,533.85064051,0.00021931,2]
[311813801,1705427614188,295.49971175,0.00021931,2]
[311813802,1705427619621,2179.73965485,0.0002,2]
[311813803,1705427621234,155.0,0.00021931,2]
[311813804,1705427625150,631.67168294,0.00021931,2]
[311813805,1705427639364,2221.898,0.00021848,2]
[311813812,1705427662558,176.36,0.00021982,2]
[311813813,1705427694181,10000.0,0.00021867,2]
[311813818,1705427826772,164.9,0.00021766,2]
[311813819,1705427862487,306.27,0.00019848,2]
[311813820,1705427872634,157.74,0.00021898,2]
[311813821,1705427872817,157.74,0.00021993,2]
[311813822,1705427887131,2000.0,0.00021608,2]
[311813823,1705427902059,1000.0,0.00021613,2]
[311813824,1705427972654,1266.09,0.00021918,2]
[311813825,1705427989186,496.65,0.0002164,2]
[311813826,1705427989477,496.65,0.00021754,2]
[311813827,1705427989630,496.65,0.00021867,2]
[311813828,1705427989874,496.65,0.00021981,2]
[311813829,1705428034574,250.0,0.00021918,2]
[311813830,1705428086448,180.6490834,0.00021977,2]
[311813831,1705428104688,2259.85,0.0002155,2]
[311813832,1705428113184,225.02,0.00021564,2]
[311813833,1705428183378,1790.82727763,0.00021644,2]
[311813834,1705428183401,959.03636103,0.00021644,2]
[311813835,1705428183422,7250.13636134,0.00021644,2]
[311813836,1705428221364,179.3,0.00021772,2]
[311813837,1705428334703,157.74,0.00021742,2]
[311813838,1705428334778,157.74,0.00021855,2]
[311813839,1705428335039,157.74,0.00021969,2]
[311813840,1705428335444,200.0,0.0002158,2]
[311813841,1705428414389,285.81636103,0.00019643,2]
[311813842,1705428414412,31.40363897,0.00019643,2]
[311813843,1705428414613,118.59636103,0.00021907,2]
[311813844,1705428414635,150.0,0.00021907,2]
[311813845,1705428414657,48.62363897,0.00021907,2]
[311813846,1705428430416,101.37636103,0.0002156,2]
[311813847,1705428430439,88.75363897,0.0002156,2]
[311813848,1705428430719,115.72879778,0.00021674,2]
[311813849,1705428430743,74.40120222,0.00021674,2]
[311813850,1705428431000,75.59879778,0.00021787,2]
[311813851,1705428431024,114.53120222,0.00021787,2]
[311813852,1705428431232,74.17338348,0.00021901,2]
[311813853,1705428431255,115.95661652,0.00021901,2]
[311813854,1705428432439,-190.13,0.00022014,2]
[311813855,1705428533215,-310.08362313,0.00022041,2]
[311813856,1705428533235,-293.54629117,0.00022041,2]
[311813857,1705428547924,250.0,0.00021918,2]
[311813866,1705428557427,270.43,0.00021527,2]
[311813874,1705428631414,-279.01375138,0.00022033,2]
[311813875,1705428631423,-155.0,0.00022034,2]
[311813876,1705428631433,-518.7705578,0.00022034,2]
[311813877,1705428631448,-1358.5,0.00022034,2]
[311813878,1705428631548,-612.26946522,0.00022034,2]
[311813879,1705428631575,-400.0,0.00022034,2]
[311813880,1705428631614,-576.57357286,0.00022034,2]
[311813881,1705428631625,-746.41878368,0.00022034,2]
[311813882,1705428631637,-422.23276258,0.00022034,2]
[311813883,1705428631648,-187.95100558,0.00022034,2]
[311813884,1705428631664,-3755.1079601,0.00022034,2]
[311813885,1705428631688,-681.90360436,0.00022034,2]
[311813886,1705428631698,-295.40555488,0.00022035,2]
[311813887,1705428631707,-2144.87693592,0.00022035,2]
[311813888,1705428631717,-155.0,0.00022036,2]
[311813889,1705428631726,-1070.43397792,0.00022036,2]
[311813890,1705428631735,-371.08106366,0.00022037,2]
[311813891,1705428631744,-150.0,0.00022043,2]
[311813892,1705428631754,-157.74,0.00022082,2]
[311813893,1705428631763,-496.65,0.00022095,2]
[311813895,1705428631772,-190.13,0.00022128,2]
[311813897,1705428631781,-151.22,0.00022151,2]
[311813899,1705428631790,-157.74,0.00022195,2]
[311813901,1705428631799,-474.00607165,0.000222,2]
[311813903,1705428631808,-496.65,0.00022209,2]
[311813905,1705428631817,-190.13,0.00022241,2]
[311813907,1705428631826,-1921.50475411,0.00022308,2]
[311813909,1705428631835,-233.83861975,0.00022308,2]
[311813911,1705428631844,-240.33558274,0.00022308,2]
[311813913,1705428631854,-1248.44870117,0.00022308,2]
[311813915,1705428631863,-472.37771217,0.00022308,2]
[311813917,1705428631872,-732.08,0.00022308,2]
[311813919,1705428631881,-157.74,0.00022309,2]
[311813921,1705428631892,-735.59,0.00022309,2]
[311813923,1705428631902,-496.65,0.00022323,2]
[311813925,1705428631911,-190.13,0.00022355,2]
[311813927,1705428631921,-157.74,0.00022422,2]
[311813929,1705428631932,-496.65,0.00022437,2]
[311813931,1705428631943,-180.6490834,0.00022442,2]
[311813933,1705428631952,-10000.0,0.00022445,2]
[311813935,1705428631961,-190.13,0.00022468,2]
[311813937,1705428631970,-362.19679503,0.000225,2]
[311813939,1705428631981,-270.43,0.00022505,2]
[311813941,1705428631990,-157.74,0.00022535,2]
[311813943,1705428631999,-496.65,0.00022551,2]
[311813945,1705428632009,-190.13,0.00022582,2]
[311813947,1705428632018,-157.74,0.00022648,2]
[311813948,1705428632028,-1257.858408,0.00022665,3]
[311813949,1705428632037,-496.65,0.00022665,2]
[311813950,1705428632046,-190.13,0.00022695,2]
[311813951,1705428632055,-2111.8184,0.000227,2]
[311813952,1705428632064,-2428.9975,0.000227,2]
[311813953,1705428632073,-522.45468481,0.000227,2]
[311813954,1705428632083,-251.0671,0.000227,2]
[311813955,1705428632092,-3455.2444,0.000227,2]
[311813956,1705428632101,-151.22,0.00022746,2]
[311813957,1705428632110,-522.45468479,0.0002275,2]
[311813958,1705428632119,-157.74,0.00022762,2]
[311813959,1705428632128,-156.0,0.00022768,2]
[311813960,1705428632137,-4842.08319771,0.00022768,2]
[311813961,1705428632152,-546.69999,0.00022768,2]
[311813962,1705428632163,-687.257,0.00022768,2]
[311813963,1705428632175,-499.6,0.00022768,2]
[311813964,1705428632186,-301.48,0.00022768,2]
[311813965,1705428632198,-762.71,0.00022768,2]
[311813966,1705428632210,-440.0,0.00022768,2]
[311813967,1705428632221,-406.76,0.00022768,2]
[311813968,1705428632233,-532.8,0.00022768,2]
[311813969,1705428632244,-444.0,0.00022768,2]
[311813970,1705428632281,-604.7260143,0.00022768,2]
[311813971,1705428632292,-282.102,0.00022768,2]
[311813972,1705428632605,-0.21134229,0.00022768,2]
[311813973,1705428632617,-1972.83445768,0.00022768,2]
[311813974,1705428632629,-870.25017859,0.00022768,2]
[311813975,1705428632640,-7652.70891006,0.00022768,2]
[311813976,1705428637546,-819.47822015,0.00022768,2]
[311813977,1705428637556,-326.72373977,0.00022768,2]
[311813978,1705428637565,-353.72680467,0.00022768,2]
[311813979,1705428637575,-496.65,0.00022779,2]
[311813980,1705428637585,-309.727205,0.00022798,2]
[311813981,1705428637594,-245.44848404,0.00022799,2]
[311813982,1705428637604,-816.33513658,0.000228,2]
[311813983,1705428637615,-284.1185386,0.000228,2]
[311813984,1705428637627,-11209.39044893,0.000228,2]
[311813985,1705428637644,-1512.623474,0.000228,2]
[311813986,1705428637667,-6093.29671848,0.000228,2]
[311813987,1705428637701,-403.70016999,0.000228,2]
[311813988,1705428637721,-115232.62039285,0.000228,2]
[311813989,1705428637733,-2776.99734937,0.000228,2]
[311813990,1705428637753,-1108.77575039,0.000228,2]
[311813991,1705428637772,-1100.55436781,0.000228,2]
[311813992,1705428637784,-2420.38355918,0.000228,2]
[311813993,1705428637794,-1045.97134691,0.000228,2]
[311813994,1705428637824,-95167.23544691,0.000228,2]
[311813995,1705428637833,-207.4487,0.000228,2]
[311813996,1705428637841,-522.45468479,0.000228,2]
[311813997,1705428637850,-190.13,0.00022809,2]
[311813998,1705428637859,-522.45468479,0.0002285,2]
[311813999,1705428637867,-157.74,0.00022875,2]
[311814000,1705428637876,-556.94521149,0.00022883,2]
[311814001,1705428637885,-496.65,0.00022892,2]
[311814002,1705428637894,-55080.37169074,0.00022898,2]
[311814003,1705428637909,-46802.36706042,0.00022898,2]
[311814004,1705428637918,-336.32780692,0.00022898,2]
[311814005,1705428637928,-646.1423,0.000229,2]
[311814006,1705428637941,-500.0,0.000229,2]
[311814007,1705428637950,-523.8307,0.000229,2]
[311814008,1705428637959,-5000.0,0.000229,2]
[311814009,1705428637969,-250.0,0.000229,2]
[311814010,1705428637978,-12159.34781672,0.000229,2]
[311814011,1705428637993,-7958.11298328,0.000229,2]
[311814012,1705428638002,-104028.1561,0.000229,2]
[311814013,1705428638014,-164.30236923,0.000229,2]
[311814014,1705428638023,-260.23093573,0.000229,2]
[311814015,1705428638031,-901.52140721,0.000229,2]
[311814016,1705428638041,-901.52140705,0.000229,2]
[311814017,1705428638050,-901.52140705,0.000229,2]
[311814018,1705428638059,-901.52140705,0.000229,2]
[311814019,1705428638067,-901.52140705,0.000229,2]
[311814020,1705428638076,-901.52140705,0.000229,2]
[311814021,1705428638085,-901.52140705,0.000229,2]
[311814022,1705428638095,-901.52140705,0.000229,2]
[311814023,1705428638104,-901.52140705,0.000229,2]
[311814024,1705428638113,-901.52140705,0.000229,2]
[311814025,1705428638123,-280.30644921,0.000229,2]
[311814026,1705428638134,-621.21495784,0.000229,2]
[311814027,1705428638143,-901.52140705,0.000229,2]
[311814029,1705428638153,-901.52140705,0.000229,2]
[311814031,1705428638162,-901.52140705,0.000229,2]
[311814033,1705428638170,-901.52140705,0.000229,2]
[311814034,1705428638179,-901.52140705,0.000229,2]
[311814036,1705428638188,-901.52140705,0.000229,2]
[311814038,1705428638197,-901.52140705,0.000229,2]
[311814040,1705428638206,-901.52140705,0.000229,2]
[311814042,1705428638215,-901.52140705,0.000229,2]
[311814043,1705428638224,-243.91,0.000229,2]
[311814044,1705428638234,-522.45468479,0.000229,2]
[311814045,1705428638242,-300.0,0.000229,2]
[311814046,1705428638251,-180.6490834,0.00022906,2]
[311814047,1705428638260,-190.13,0.00022922,2]
[311814048,1705428638269,-17543.68482293,0.0002297,2]
[311814049,1705428638278,-169.31680381,0.0002297,2]
[311814050,1705428638287,-32043.61998212,0.0002298,2]
[311814051,1705428638296,-169.31680381,0.0002299,2]
[311814052,1705428638305,-1484.57200398,0.00022998,2]
[311814053,1705428638314,-220.95063616,0.00022998,2]
[311814054,1705428638324,-2618.74812066,0.00022998,2]
[311814055,1705428638333,-221.53171905,0.00022998,2]
[311814056,1705428638342,-342.86944527,0.00022998,2]
[311814057,1705428638351,-155.0,0.00022998,2]
[311814058,1705428638360,-538.58822261,0.00022998,2]
[311814059,1705428638369,-204.29770103,0.00022998,2]
[311814060,1705428638378,-1124.63119894,0.00022998,2]
[311814061,1705428638387,-263.27381778,0.00022998,2]
[311814062,1705428638396,-2605.4449966,0.00022998,2]
[311814063,1705428638406,-542.9635753,0.00022998,2]
[311814064,1705428638415,-336.95365617,0.00022998,2]
[311814065,1705428638425,-155.0,0.00022998,2]
[311814066,1705428638434,-15060.65051886,0.00022998,2]
[311814067,1705428638446,-298.62800448,0.00022998,2]
[311814068,1705428638456,-706.00530025,0.00022998,2]
[311814069,1705428638509,-2302.50126652,0.00022998,2]
[311814070,1705428638519,-203.17659496,0.00022998,2]
[311814071,1705428638529,-501.09834726,0.00022998,2]
[311814072,1705428638538,-1499.9593735,0.00022998,2]
[311814073,1705428638548,-532.61615679,0.00022998,2]
[311814074,1705428638558,-2614.42417695,0.00022998,2]
[311814075,1705428638568,-6433.71502651,0.00022998,2]
[311814076,1705428638579,-1177.70454894,0.00022998,2]
[311814077,1705428638588,-4267.19887316,0.00022998,2]
[311814078,1705428638598,-2294.55917338,0.00022998,2]
[311814079,1705428638608,-10544.01891399,0.00022998,2]
[311814080,1705428638618,-15.10652976,0.00022998,2]
[311814088,1705428640545,-1001.76483931,0.00022998,2]
[311814089,1705428640557,-1523.43243491,0.00022998,2]
[311814090,1705428640579,-815.8300559,0.00022998,2]
[311814091,1705428640701,-4418.11183732,0.00022998,2]
[311814092,1705428640712,-252.65442073,0.00022998,2]
[311814093,1705428640722,-232.92375042,0.00022998,2]
[311814094,1705428640731,-400.06896681,0.00022998,2]
[311814095,1705428640740,-2108.96929926,0.00022998,2]
[311814096,1705428640750,-337.22386989,0.00022998,2]
[311814097,1705428640759,-157.3878743,0.00022998,2]
[311814098,1705428640768,-975.73879934,0.00022998,2]
[311814099,1705428640778,-756.66081433,0.00022998,2]
[311814100,1705428640787,-4698.35903998,0.00022998,2]
[311814101,1705428640797,-250.02290447,0.00022998,2]
[311814102,1705428640807,-155.0,0.00022998,2]
[311814103,1705428640819,-301.90910224,0.00022998,2]
[311814104,1705428640830,-155.0,0.00022998,2]
[311814105,1705428640842,-155.0,0.00022998,2]
[311814106,1705428640853,-177.63055213,0.00022998,2]
[311814107,1705428640864,-1254.8177837,0.00022998,2]
[311814108,1705428640876,-155.0,0.00022998,2]
[311814109,1705428640888,-234.89781562,0.00022998,2]
[311814110,1705428640900,-23005.55825409,0.00022998,2]
[311814111,1705428640912,-12294.16339703,0.00022998,2]
[311814112,1705428640921,-913.69891953,0.00022999,2]
[311814113,1705428640936,-300.0,0.00022999,2]
[311814114,1705428640946,-959841.54256072,0.00023,2]
[311814115,1705428640957,-4475183.82225925,0.00023,2]
[311814116,1705428640966,-3000.0,0.00023,2]
[311814117,1705428640978,-496.65,0.00023006,2]
[311814118,1705428640989,-190.13,0.00023036,2]
[311814119,1705428641001,-496.65,0.0002312,2]
[311814120,1705428641014,-179.3,0.00023137,2]
[311814121,1705428641026,-190.13,0.00023149,2]
[311814122,1705428641037,-496.65,0.00023234,2]
[311814123,1705428641048,-10000.0,0.00023245,2]
[311814124,1705428641058,-190.13,0.00023263,2]
[311814125,1705428641070,-500.0,0.00023288,2]
[311814126,1705428641082,-347.46138988,0.00023288,2]
[311814127,1705428641094,-500.0,0.00023288,2]
[311814128,1705428641105,-151.22,0.00023341,2]
[311814129,1705428641114,-496.65,0.00023348,2]
[311814130,1705428641123,-190.13,0.00023376,2]
[311814131,1705428641132,-496.65,0.00023462,2]
[311814132,1705428641141,-270.43,0.00023484,2]
[311814133,1705428641150,-190.13,0.0002349,2]
[311814134,1705428641160,-496.65,0.00023576,2]
[311814135,1705428641169,-190.13,0.00023603,2]
[311814136,1705428641179,-496.65,0.0002369,2]
[311814137,1705428641188,-190.13,0.00023717,2]
[311814138,1705428641197,-496.65,0.00023804,2]
[311814139,1705428641206,-151.22,0.00023937,2]
[311814140,1705428641216,-168.39287458,0.00023979,2]
[311814141,1705428641225,-5000.0,0.00024,2]
[311814142,1705428641234,-201.0574264,0.00024,2]
[311814143,1705428641243,-155.28190917,0.00024,2]
[311814144,1705428641252,-431.37614522,0.00024,2]
[311814145,1705428641262,-3000.0,0.00024,2]
[311814146,1705428641272,-10000.0,0.00024046,2]
[311814147,1705428641282,-317.22,0.0002417,2]
[311814148,1705428641292,-300.0,0.0002427,2]
[311814149,1705428641303,-200.0,0.00024278,2]
[311814150,1705428641314,-167.0,0.00024297,2]
[311814151,1705428641324,-28755.0,0.000243,2]
[311814152,1705428641335,-1000.0,0.00024315,2]
[311814153,1705428641345,-6742.131592,0.00024462,4]
[311814154,1705428641354,-270.43,0.00024462,2]
[311814155,1705428641363,-179.3,0.00024502,2]
[311814156,1705428641372,-151.22,0.00024532,2]
[311814157,1705428641382,-250.0,0.00024658,2]
[311814158,1705428641391,-10000.0,0.00024847,2]
[311814159,1705428641400,-160.29,0.00024895,2]
[311814160,1705428641410,-1383.77,0.0002498,2]
[311814161,1705428641419,-1071.12,0.0002498,2]
[311814162,1705428641429,-1024.52319113,0.00025,2]
[311814163,1705428641439,-1583.52448944,0.00025,2]
[311814164,1705428641449,-201.95095563,0.00025,2]
[311814165,1705428641458,-303.34687539,0.00025,2]
[311814166,1705428641467,-374.71049551,0.00025,2]
[311814167,1705428641477,-167.30708743,0.00025,2]
[311814168,1705428641486,-693.65618198,0.00025,2]
[311814169,1705428641495,-2002.75826668,0.00025,2]
[311814170,1705428641505,-2396.13324272,0.00025,2]
[311814171,1705428641514,-5375.725912,0.00025,2]
[311814172,1705428641523,-1250.0,0.00025,3]
[311814173,1705428641534,-650.0,0.00025,2]
[311814174,1705428641543,-167.0,0.00025099,2]
[311814175,1705428641553,-151.22,0.00025127,2]
[311814176,1705428641563,-279.78010015,0.00025158,2]
[311814177,1705428641573,-36518.318,0.00025194,2]
[311814178,1705428641582,-2903.0,0.00025194,2]
[311814179,1705428641592,-4170.0,0.00025194,2]
[311814180,1705428641601,-2271.0,0.00025194,2]
[311814181,1705428641610,-4956.291,0.00025194,2]
[311814182,1705428641620,-924.31,0.00025194,2]
[311814183,1705428641630,-19688.0,0.00025194,2]
[311814184,1705428641639,-1029.0,0.00025194,2]
[311814185,1705428641649,-844.311,0.00025289,2]
[311814186,1705428641659,-403.0,0.00025289,2]
[311814187,1705428641668,-1220.031,0.00025289,2]
[311814188,1705428641678,-1852.0,0.00025289,2]
[311814189,1705428641687,-1822.051,0.00025289,2]
[311814190,1705428641697,-945.0,0.00025289,2]
[311814191,1705428641707,-835.0,0.00025289,2]
[311814192,1705428641717,-1252.0,0.00025289,2]
[311814193,1705428641726,-724.018,0.00025289,2]
[311814194,1705428641736,-1323.172,0.00025289,2]
[311814195,1705428641745,-235.0,0.00025289,2]
[311814196,1705428641756,-507.0,0.00025289,2]
[311814197,1705428641766,-373.279,0.00025289,2]
[311814198,1705428641776,-879.001,0.00025289,2]
[311814199,1705428641786,-270.43,0.00025441,2]
[311814200,1705428641796,-151.22,0.00025722,2]
[311814201,1705428641806,-179.3,0.00025867,2]
[311814202,1705428641816,-164.30236919,0.000259,2]
[311814203,1705428641825,-167.0,0.00025901,2]
[311814204,1705428641835,-160.29,0.0002614,2]
[311814205,1705428641845,-150.0,0.00026158,2]
[311814206,1705428641855,-151.22,0.00026318,2]
[311814207,1705428641865,-270.43,0.00026419,2]
[311814208,1705428641876,-317.22,0.00026434,2]
[311814209,1705428641886,-3989.4,0.00026575,2]
[311814210,1705428641895,-24613.09,0.00026575,2]
[311814211,1705428641906,-167.0,0.00026703,2]
[311814212,1705428641917,-200.0,0.00026975,2]
[311814213,1705428641927,-155.0,0.00027,2]
[311814214,1705428641942,-1300.0,0.00027,3]
[311814215,1705428641953,-1000.0,0.00027016,2]
[311814216,1705428641962,-738.01076694,0.00027019,2]
[311814217,1705428641974,-1560.98,0.00027123,2]
[311814218,1705428641985,-150.0,0.00027158,2]
[311814219,1705428641996,-160.29,0.00027385,2]
[311814220,1705428642006,-155.0,0.00027397,2]
[311814221,1705428642019,-151.03074467,0.00027397,2]
[311814222,1705428642029,-3000.0,0.00027397,2]
[311814223,1705428642041,-3000.0,0.00027397,2]
[311814224,1705428642052,-4878.6747,0.00027397,2]
[311814225,1705428642062,-163.99,0.00027397,2]
[311814226,1705428642073,-5632.93,0.00027397,2]